[Event "European Corporate Championship 2022"]
[Site "Rotterdam"]
[Date "2022.06.18"]
[Round "1.2"]
[White "Rietman, Frits"]
[Black "Dekker, Derk"]
[Result "1-0"]
[ECO "C54"]
[WhiteElo "2237"]
[BlackElo "1893"]
[Annotator "NA RC"]
[PlyCount "95"]
[EventDate "2022.06.18"]
[EventType "team-tourn"]
[EventCountry "NED"]
[SourceTitle "playchess.com"]
[Source "ChessBase"]
[SourceQuality "1"]
[TimeControl "900+5"]

1. e4 {[%emt 0:00:03]} e5 {[%emt 0:00:01]} 2. Nf3 {[%emt 0:00:04]} Nc6 {[%emt 0:00:01]} 3. Bc4 {[%emt 0:00:03]} Nf6 {[%emt 0:00:01]} 4. d3 {[%emt 0:00:03]} Bc5 {[%emt 0:00:04]} 5. Bg5 {[%emt 0:00:12]} d6 {[%emt 0:00:45]} 6. c3 {[%emt 0:00:15]} Bb6 {[%emt 0:00:23]} 7. Nbd2 {[%emt 0:00:17]} h6 {[%emt 0:00:44]} 8. Bh4 {[%emt 0:00:07]} Bg4 {[%emt 0:01:50]} 9. b4 {[%emt 0:00:39]} a5 {[%emt 0:02:28]} 10. a3 {[%emt 0:00:42]} Qe7 {[%emt 0:01:31]} 11. Bb5 {[%emt 0:01:23]} axb4 {[%emt 0:00:28]} 12. axb4 {[%emt 0:00:14]} Rxa1 {[%emt 0:00:02]} 13. Qxa1 {[%emt 0:00:08]} O-O {[%emt 0:00:02]} 14. h3 {[%emt 0:01:01]} Bxf3 {[%emt 0:00:38]} 15. Nxf3 {[%emt 0:00:12]} Nd8 {[%emt 0:00:56]} 16. O-O {[%emt 0:01:15]} Ne6 {[%emt 0:00:13]} 17. Re1 {[%emt 0:00:40]} Nf4 {[%emt 0:00:37]} 18. Qb1 {[%emt 0:01:57]} Ng6 {[%emt 0:01:00]} 19. Bg3 {[%emt 0:00:06]} Nh5 {[%emt 0:00:04]} 20. Bh2 {[%emt 0:00:06]} Nhf4 {[%emt 0:00:05]} 21. Bg3 {[%emt 0:03:20]} Ra8 {[%emt 0:00:22]} 22. d4 {[%emt 0:00:10]} Qf6 {[%emt 0:01:25]} 23. dxe5 {[%emt 0:01:15]} dxe5 {[%emt 0:00:02]} 24. Nd2 {[%emt 0:00:22]} c6 {[%emt 0:00:26]} 25. Bc4 {[%emt 0:00:20]} Rd8 {[%emt 0:00:14]} 26. Nb3 {[%emt 0:00:23]} Qg5 {[%emt 0:01:41]} 27. Nc5 {[%emt 0:00:48]} Nh4 {[%emt 0:00:17]} 28. Bf1 {[%emt 0:00:02]} Rd2 {[%emt 0:00:33]} 29. Rd1 {[%emt 0:00:08]} Rxd1 {[%emt 0:00:16]} 30. Qxd1 {[%emt 0:00:02]} Bxc5 {[%emt 0:00:07]} 31. bxc5 {[%emt 0:00:01]} Qe7 {[%emt 0:00:10]} 32. Kh2 {[%emt 0:00:23]} Nhg6 {[%emt 0:00:03]} 33. Qd6 {[%emt 0:00:22]} Kf8 {[%emt 0:00:07]} 34. Qb8+ {[%emt 0:00:09]} Qe8 {[%emt 0:00:02]} 35. Qxb7 {[%emt 0:00:05]} Ne6 {[%emt 0:00:06]} 36. Qb6 {[%emt 0:00:17]} Kg8 {[%emt 0:00:03]} 37. Bc4 {[%emt 0:00:02]} Ngf4 {[%emt 0:00:09]} 38. Bb3 {[%emt 0:00:12]} Kh7 {[%emt 0:00:11]} 39. Ba4 {[%emt 0:00:05]} f6 {[%emt 0:00:07]} 40. Bxc6 {[%emt 0:00:10]} Qg6 {[%emt 0:00:05]} 41. Bd5 {[%emt 0:00:11]} Nxd5 {[%emt 0:00:03]} 42. exd5 {[%emt 0:00:02]} Nf4 {[%emt 0:00:05]} 43. Bxf4 {[%emt 0:00:15]} exf4 {[%emt 0:00:01]} 44. Qe6 {[%emt 0:00:02]} Qc2 {[%emt 0:00:08]} 45. f3 {[%emt 0:00:17]} g5 {[%emt 0:00:05]} 46. c6 Qf2 {[%emt 0:00:14]} 47. c7 {[%emt 0:00:10]} Qg3+ {[%emt 0:00:05]} 48. Kg1 1-0

[Event "European Corporate Championship 2022"]
[Site "Rotterdam"]
[Date "2022.06.18"]
[Round "1.3"]
[White "Vosooghi Dizaji, Mehdi"]
[Black "Groenewold, Jan Joris"]
[Result "1/2-1/2"]
[ECO "B23"]
[WhiteElo "1878"]
[BlackElo "2134"]
[Annotator "NA RC"]
[PlyCount "129"]
[EventDate "2022.06.18"]
[EventType "team-tourn"]
[EventCountry "NED"]
[SourceTitle "playchess.com"]
[Source "ChessBase"]
[SourceQuality "1"]
[TimeControl "900+5"]

1. e4 {[%emt 0:00:04]} c5 {[%emt 0:00:06]} 2. Nc3 {[%emt 0:00:20]} e6 {[%emt 0:00:08]} 3. Bc4 {[%emt 0:00:24]} a6 {[%emt 0:00:05]} 4. a4 {[%emt 0:00:05]} Nc6 {[%emt 0:00:12]} 5. f4 {[%emt 0:00:08]} Nf6 {[%emt 0:01:46]} 6. e5 {[%emt 0:00:21]} d5 {[%emt 0:00:21]} 7. exd6 {[%emt 0:01:49]} Bxd6 {[%emt 0:00:23]} 8. d3 {[%emt 0:00:01]} Qc7 {[%emt 0:00:22]} 9. Nge2 {[%emt 0:00:42]} O-O {[%emt 0:00:43]} 10. O-O {[%emt 0:00:02]} Rb8 {[%emt 0:02:02]} 11. Ne4 {[%emt 0:01:17]} Be7 {[%emt 0:01:36]} 12. Qe1 {[%emt 0:00:19]} b5 {[%emt 0:00:14]} 13. axb5 {[%emt 0:01:27]} axb5 {[%emt 0:00:02]} 14. Bb3 {[%emt 0:00:28]} Nb4 {[%emt 0:02:17]} 15. Bd2 {[%emt 0:01:57]} Nbd5 {[%emt 0:00:21]} 16. c3 {[%emt 0:02:07]} b4 {[%emt 0:01:11]} 17. Bc4 {[%emt 0:00:37]} Nb6 {[%emt 0:00:45]} 18. Bb3 {[%emt 0:00:32]} c4 {[%emt 0:00:57]} 19. Nxf6+ {[%emt 0:00:24]} Bxf6 {[%emt 0:00:14]} 20. dxc4 {[%emt 0:00:12]} Nxc4 {[%emt 0:00:20]} 21. cxb4 {[%emt 0:01:37]} Nxd2 {[%emt 0:00:27]} 22. Qxd2 {[%emt 0:00:03]} Qb6+ {[%emt 0:00:02]} 23. Kh1 {[%emt 0:00:15]} Qxb4 {[%emt 0:00:02]} 24. Qxb4 {[%emt 0:00:30]} Rxb4 {[%emt 0:00:02]} 25. Rf3 {[%emt 0:00:27]} Bb7 {[%emt 0:00:25]} 26. Rg3 {[%emt 0:00:09]} Bxb2 {[%emt 0:00:09]} 27. Rb1 {[%emt 0:00:09]} Bf6 {[%emt 0:00:22]} 28. f5 {[%emt 0:00:12]} Bd5 {[%emt 0:00:15]} 29. fxe6 {[%emt 0:00:16]} fxe6 {[%emt 0:00:36]} 30. Nf4 {[%emt 0:00:23]} Bxb3 {[%emt 0:00:22]} 31. Rgxb3 {[%emt 0:00:02]} Rxb3 {[%emt 0:00:02]} 32. Rxb3 {[%emt 0:00:02]} Be5 {[%emt 0:00:05]} 33. g3 {[%emt 0:00:17]} Bxf4 {[%emt 0:00:07]} 34. gxf4 {[%emt 0:00:01]} Rxf4 {[%emt 0:00:01]} 35. Rb8+ {[%emt 0:00:01]} Kf7 {[%emt 0:00:01]} 36. Rb7+ {[%emt 0:00:01]} Kf6 {[%emt 0:00:00]} 37. Kg2 {[%emt 0:00:02]} h5 {[%emt 0:00:03]} 38. Kg3 {[%emt 0:00:02]} g5 {[%emt 0:00:02]} 39. Rb8 {[%emt 0:00:05]} Rg4+ {[%emt 0:00:09]} 40. Kf3 {[%emt 0:00:04]} Rh4 {[%emt 0:00:01]} 41. Kg3 {[%emt 0:00:02]} Ra4 {[%emt 0:00:02]} 42. Rh8 {[%emt 0:00:19]} Ra3+ {[%emt 0:00:06]} 43. Kg2 {[%emt 0:00:02]} h4 {[%emt 0:00:03]} 44. Rh6+ {[%emt 0:00:15]} Kf5 {[%emt 0:00:01]} 45. Rh8 {[%emt 0:00:04]} e5 {[%emt 0:00:06]} 46. Rf8+ {[%emt 0:00:03]} Kg4 {[%emt 0:00:01]} 47. Re8 {[%emt 0:00:04]} Ra2+ {[%emt 0:00:02]} 48. Kg1 {[%emt 0:00:03]} Kf4 {[%emt 0:00:07]} 49. Rf8+ {[%emt 0:00:05]} Ke3 {[%emt 0:00:02]} 50. Rf5 {[%emt 0:00:04]} h3 {[%emt 0:00:07]} 51. Rxe5+ {[%emt 0:00:19]} Kf3 {[%emt 0:00:11]} 52. Re1 {[%emt 0:00:03]} g4 {[%emt 0:00:03]} 53. Rf1+ {[%emt 0:00:01]} Ke3 {[%emt 0:00:01]} 54. Re1+ {[%emt 0:00:01]} Kf4 {[%emt 0:00:15]} 55. Rf1+ {[%emt 0:00:02]} Kg5 {[%emt 0:00:02]} 56. Rc1 {[%emt 0:00:24]} Ra4 {[%emt 0:00:07]} 57. Rc5+ {[%emt 0:00:00]} Kf4 {[%emt 0:00:01]} 58. Rc1 {[%emt 0:00:00]} Ra3 {[%emt 0:00:02]} 59. Rf1+ {[%emt 0:00:00]} Rf3 {[%emt 0:00:01]} 60. Ra1 {[%emt 0:00:00]} g3 {[%emt 0:00:02]} 61. Ra4+ {[%emt 0:00:00]} Ke3 {[%emt 0:00:04]} 62. Ra3+ {[%emt 0:00:00]} Kf4 {[%emt 0:00:01]} 63. hxg3+ {[%emt 0:00:00]} Rxg3+ {[%emt 0:00:27]} 64. Rxg3 {[%emt 0:00:07]} Kxg3 {[%emt 0:00:02]} 65. Kh1 {[%emt 0:00:08]} 1/2-1/2

[Event "European Corporate Championship 2022"]
[Site "Rotterdam"]
[Date "2022.06.18"]
[Round "1.5"]
[White "Nijboer, Friso"]
[Black "Quintana Hernandez, Marcos Ivan"]
[Result "1-0"]
[ECO "B07"]
[WhiteElo "2464"]
[BlackElo "1925"]
[Annotator "TA"]
[PlyCount "37"]
[EventDate "2022.06.18"]
[EventType "team-tourn"]
[EventCountry "NED"]
[SourceTitle "playchess.com"]
[Source "ChessBase"]
[SourceQuality "1"]
[TimeControl "900+5"]

{[%evp 19,37,29,31,27,34,23,22,0,24,42,145,149,276,252,630,626,580,594,1339,1306]} 1. e4 {[%emt 0:00:05]} d6 {[%emt 0:00:02]} 2. d4 {[%emt 0:00:01]} Nf6 {[%emt 0:00:03]} 3. Nc3 {[%emt 0:00:01]} g6 {[%emt 0:00:02]} 4. Be3 {[%emt 0:00:03]} Bg7 {[%emt 0:00:02]} 5. Qd2 {[%emt 0:00:01]} c6 {[%emt 0:00:28]} 6. Bh6 {[%emt 0:00:12]} O-O {[%emt 0:00:05]} 7. f3 {[%emt 0:01:18]} Nbd7 {[%emt 0:00:34]} 8. h4 {[%emt 0:00:24][%cal Bh2h4,Bh4h5,Bh5h6][%mdl 32]} e5 {[%emt 0:00:47]} 9. Bxg7 {[%emt 0:03:25]} Kxg7 {[%emt 0:00:11]} 10. O-O-O {[%emt 0:00:21]} h5 $1 {[%emt 0:04:31] [#]} 11. g4 $146 {[%emt 0:02:10] B07: Pirc Defence: Miscellaneous Systems.} ({Predecessor:} 11. Nh3 b5 12. Ng5 Qa5 13. Kb1 b4 14. Ne2 Ba6 15. g4 Rh8 16. gxh5 Nxh5 17. dxe5 Bxe2 18. Bxe2 Qxe5 {1-0 (56) Stefansson,H (2518)-Rasik,V (2424) Marianske Lazne 2022}) 11... hxg4 {[%emt 0:00:44]} 12. h5 {[%emt 0:00:01] [#] aiming for hxg6.} Rh8 {[%emt 0:01:16]} 13. h6+ {[%emt 0:00:04] The position is equal.} Kh7 {[%emt 0:00:06]} 14. dxe5 {[%emt 0:00:25]} dxe5 {[%emt 0:00:21]} (14... Nxe5 $14 15. f4 Ned7) 15. fxg4 $16 {[%emt 0:00:17] White is more active.} Nxg4 {[%emt 0:00:13]} (15... Qe7 $16 {was called for.}) 16. Nf3 {[%emt 0:00:01] [#] Hoping for Ng5+.} Qf6 {[%emt 0:02:38]} (16... Qe7 17. Ng5+ Kg8) 17. Ng5+ $18 {[%emt 0:00:10] White is clearly winning.} Kg8 {[%emt 0:00:02]} 18. Bc4 {[%emt 0:00:01]} Qf4 {[%emt 0:01:01]} 19. Bxf7+ {[%emt 0:00:48] Black did not feel at home in the position after the opening.  Weighted Error Value: White=0.02 (flawless) /Black=0.80} 1-0

[Event "European Corporate Championship 2022"]
[Site "Rotterdam"]
[Date "2022.06.18"]
[Round "1.6"]
[White "Weijers, Ralf"]
[Black "De Vreugt, Dennis"]
[Result "0-1"]
[ECO "C56"]
[WhiteElo "1857"]
[BlackElo "2393"]
[Annotator "TA"]
[PlyCount "46"]
[EventDate "2022.06.18"]
[EventType "team-tourn"]
[EventCountry "NED"]
[SourceTitle "playchess.com"]
[Source "ChessBase"]
[SourceQuality "1"]
[TimeControl "900+5"]

{[%evp 17,46,0,0,-66,-49,-56,-70,-71,-59,-59,-71,-81,-65,-80,-91,-154,-135,-306,-313,-309,-312,-310,-308,-316,-305,-305,-306,-302,-285,-406,-266]} 1. e4 {[%emt 0:00:02]} e5 {[%emt 0:00:02]} 2. Nf3 {[%emt 0:00:02]} Nc6 {[%emt 0:00:01]} 3. Bc4 {[%emt 0:00:02]} Nf6 {[%emt 0:00:06]} 4. d4 {[%emt 0:00:02]} exd4 {[%emt 0:00:11]} 5. e5 {[%emt 0:00:02]} Ne4 {[%emt 0:00:02]} 6. O-O {[%emt 0:00:26]} d5 {[%emt 0:00:11]} 7. exd6 {[%emt 0:01:07]} Nxd6 {[%emt 0:00:04]} 8. Bb3 {[%emt 0:00:39]} Bg4 {[%emt 0:01:25]} 9. Re1+ {[%emt 0:00:21]} Be7 {[%emt 0:00:02]} 10. Bg5 {[%emt 0:00:18] C56: Two Knights: 4 d4 exd4 5 0-0 Nxe4.} (10. Bf4 $11) 10... O-O $15 {[%emt 0:00:22]} 11. Bxe7 {[%emt 0:00:09]} Nxe7 {[%emt 0:00:01]} 12. Qxd4 {[%emt 0:00:30] Black is slightly better.} Bxf3 {[%emt 0:00:08]} 13. gxf3 {[%emt 0:00:01]} Nef5 {[%emt 0:00:15]} 14. Qf4 {[%emt 0:00:10] [#]} Qh4 $146 {[%emt 0:01:46]} ({Predecessor:} 14... Nh4 15. Nd2 Ndf5 16. Rad1 Qf6 17. Kh1 Rad8 18. c3 Ng6 19. Qxc7 {0-1 (30) Zhu,H (1727)-Rousseau,D (2181) Montreal 2009}) 15. Qg4 {[%emt 0:00:34]} h5 {[%emt 0:00:47]} 16. Qg2 {[%emt 0:02:02]} (16. Qxh4 $142 Nxh4 17. Nd2) 16... Qf4 {[%emt 0:00:42] [#] Strongly threatening ...Nh4.} 17. Bd5 $2 {[%emt 0:02:18]} (17. Kh1 $17) 17... c6 $19 {[%emt 0:00:59]} 18. Be4 {[%emt 0:00:01]} Nxe4 {[%emt 0:00:04]} 19. Rxe4 {[%emt 0:01:29]} Qc1+ {[%emt 0:00:02]} 20. Qf1 {[%emt 0:00:00]} Qxb2 {[%emt 0:00:02]} ({But not} 20... Qxc2 $2 21. Re2 Qc5 22. Na3 $19) 21. Nd2 {[%emt 0:00:01]} Rad8 {[%emt 0:00:17]} 22. Nc4 {[%emt 0:00:36]} Qxc2 {[%emt 0:00:04]} 23. Qh3 {[%emt 0:00:13]} (23. Qc1 $142 Qd3 24. Ne5) 23... Rd1+ {[%emt 0:09:27] White got outplayed after the opening.  Weighted Error Value: White=0.46/Black=0.03 (flawless)} 0-1

[Event "European Corporate Championship 2022"]
[Site "Rotterdam"]
[Date "2022.06.18"]
[Round "1.9"]
[White "Tikranian, Alik"]
[Black "Haast, Mark"]
[Result "0-1"]
[ECO "A37"]
[WhiteElo "2303"]
[BlackElo "2414"]
[Annotator "TA"]
[PlyCount "94"]
[EventDate "2022.06.18"]
[EventType "team-tourn"]
[EventCountry "NED"]
[SourceTitle "playchess.com"]
[Source "ChessBase"]
[SourceQuality "1"]
[TimeControl "900+5"]

{[%evp 12,94,-13,-16,-7,-8,-10,-56,-56,-62,-50,-50,-47,-57,-41,-66,-47,-97,-72,-102,-13,-14,-13,-14,-14,-12,-13,-13,-13,-14,-13,-47,-45,-112,-41,-91,-91,-133,-136,-131,-127,-127,-135,-180,-187,-266,-106,-101,-93,-96,-56,-54,-55,-62,-14,-18,0,-108,-116,-117,-117,-1533,-1638,-1188,-1479,-1455,-1422,-1121,-268,-477,-477,-477,-477,-477,-440,-426,-410,-377,-315,-831,-797,-777,-643,-1923,-1518]} 1. Nf3 {[%emt 0:00:04]} c5 {[%emt 0:00:07]} 2. c4 {[%emt 0:00:05]} g6 {[%emt 0:00:09]} 3. g3 {[%emt 0:00:04]} Bg7 {[%emt 0:00:02]} 4. Bg2 {[%emt 0:00:01]} Nc6 {[%emt 0:00:02]} 5. Nc3 {[%emt 0:00:09]} e5 {[%emt 0:00:15]} 6. e4 {[%emt 0:00:27]} Nge7 {[%emt 0:00:10]} 7. d3 {[%emt 0:00:08]} d6 {[%emt 0:00:06] A37: Symmetrical English vs ...g6: 4 Bg2 Bg7 5 Nf3.} 8. Be3 {[%emt 0:00:16]} Nd4 {[%emt 0:00:20]} 9. Bxd4 {[%emt 0:00:28]} (9. Rb1 $11) 9... cxd4 $15 {[%emt 0:01:26] [#] Black is slightly better.} 10. Nd5 $146 {[%emt 0:00:03]} ({Predecessor:} 10. Ne2 Qa5+ 11. Qd2 Qxd2+ 12. Nxd2 Rb8 13. O-O O-O 14. Rac1 f5 15. Rc2 Nc6 16. a3 {1-0 (36) Berau,J (1695)-Bienhuels,M (2050) Germany 2005}) 10... Nxd5 {[%emt 0:00:17]} 11. cxd5 {[%emt 0:00:18]} O-O {[%emt 0:00:22]} 12. O-O {[%emt 0:00:10]} Bg4 {[%emt 0:01:19]} 13. Qb3 {[%emt 0:00:33]} Qb6 {[%emt 0:00:52]} 14. Rfc1 {[%emt 0:05:21]} ({Better is} 14. h3 $15 Bd7 15. Nd2) 14... Rfc8 {[%emt 0:01:51]} 15. h3 {[%emt 0:03:23]} Bxf3 {[%emt 0:00:08]} (15... Qxb3 $17 16. axb3 Bh6 17. Rxc8+ Bxc8) 16. Bxf3 $11 {[%emt 0:00:01]} Bh6 {[%emt 0:00:59]} 17. Rxc8+ {[%emt 0:01:44]} Rxc8 {[%emt 0:00:02]} 18. Qxb6 {[%emt 0:00:01]} axb6 {[%emt 0:00:01][%mdl 4096] Endgame KRB-KRB} 19. Bd1 {[%emt 0:00:02] Against Rc2} f5 {[%emt 0:00:38]} 20. exf5 {[%emt 0:01:46]} gxf5 {[%emt 0:00:01]} 21. f3 {[%emt 0:00:12]} Kg7 {[%emt 0:01:35]} 22. g4 {[%emt 0:00:13]} (22. a4 $15) 22... Rc5 {[%emt 0:00:57] Black is more active.} ({Black should try} 22... e4 $17 23. fxe4 fxe4 24. dxe4 d3) 23. Bb3 {[%emt 0:00:24]} (23. Kf2 $15) 23... Bc1 $17 {[%emt 0:00:58]} 24. Bc4 {[%emt 0:00:29]} Bxb2 {[%emt 0:00:55]} 25. Rb1 {[%emt 0:00:01]} b5 {[%emt 0:00:00]} 26. Bb3 {[%emt 0:00:29]} Bc1 {[%emt 0:00:17]} 27. gxf5 {[%emt 0:00:03]} Kf6 {[%emt 0:00:16]} 28. a4 {[%emt 0:00:01]} (28. Kf2 {was worth a try.}) 28... b4 $2 {[%emt 0:00:46] [#]} ({Not} 28... Kxf5 29. Bd1 $19) (28... Rc3 $19 29. Kf1 Rxd3) 29. Bc4 {[%emt 0:00:05]} Bd2 {[%emt 0:00:04]} 30. Kf2 {[%emt 0:00:07]} Rc7 {[%emt 0:00:33] Strongly threatening ...Rg7.} 31. Ke2 {[%emt 0:00:01]} Bc3 {[%emt 0:00:04] And now ...Rg7 would win.} 32. Rg1 {[%emt 0:00:02]} Kxf5 {[%emt 0:01:30]} (32... Rg7 $15 33. Rg4 h5 34. Rxg7 Kxg7) 33. Rg8 $11 {[%emt 0:00:02]} Kf6 {[%emt 0:00:08]} 34. Rg4 {[%emt 0:00:24]} (34. Rd8 $1 $11) 34... Rg7 $17 {[%emt 0:00:15]} 35. Rxg7 {[%emt 0:00:14]} Kxg7 {[%emt 0:00:01] KB-KB} 36. f4 $2 {[%emt 0:00:01][%mdl 8192] This costs White the game.} (36. Kd1 $17) 36... exf4 $19 {[%emt 0:00:08]} 37. Kf3 {[%emt 0:00:01]} Bd2 {[%emt 0:00:01]} 38. Ke4 {[%emt 0:00:01]} Be3 {[%emt 0:00:02] Hoping for ...Kg6.} 39. Kf3 {[%emt 0:00:00]} Kf6 $2 {[%emt 0:00:03]} (39... Kg6 40. Bb3 Kg5) 40. a5 $2 {[%emt 0:00:16]} (40. Kg2) 40... Ke7 {[%emt 0:00:15]} 41. Bb3 {[%emt 0:00:01]} Kd7 {[%emt 0:00:02]} 42. Ba4+ {[%emt 0:00:02]} Kc7 {[%emt 0:00:01]} 43. Ke4 {[%emt 0:00:03]} Kb8 {[%emt 0:00:02]} 44. Bb3 {[%emt 0:00:03]} Ka7 {[%emt 0:00:01]} 45. Bc4 $2 {[%emt 0:00:02] [#]} (45. Kf3) 45... b3 $1 {[%emt 0:00:07] Black is clearly winning.} 46. Bxb3 {[%emt 0:00:14]} Ka6 {[%emt 0:00:01]} 47. Bc4+ {[%emt 0:00:16]} Kxa5 {[%emt 0:00:51] Weighted Error Value: White=0.61/Black=0.33} 0-1

[Event "European Corporate Championship 2022"]
[Site "Rotterdam"]
[Date "2022.06.18"]
[Round "1.10"]
[White "Schouten, Jordy"]
[Black "Eerens, Pim"]
[Result "1/2-1/2"]
[ECO "E57"]
[WhiteElo "2121"]
[BlackElo "2087"]
[Annotator "NA RC"]
[PlyCount "142"]
[EventDate "2022.06.18"]
[EventType "team-tourn"]
[EventCountry "NED"]
[SourceTitle "playchess.com"]
[Source "ChessBase"]
[SourceQuality "1"]
[TimeControl "900+5"]

1. e4 {[%emt 0:00:04]} c5 {[%emt 0:00:02]} 2. c3 {[%emt 0:00:02]} Nf6 {[%emt 0:00:05]} 3. e5 {[%emt 0:00:01]} Nd5 {[%emt 0:00:01]} 4. Nf3 {[%emt 0:00:01]} d6 {[%emt 0:00:07]} 5. exd6 {[%emt 0:00:13]} e6 {[%emt 0:00:01]} 6. Bc4 {[%emt 0:00:10]} Bxd6 {[%emt 0:00:05]} 7. O-O {[%emt 0:00:04]} O-O {[%emt 0:00:07]} 8. d4 {[%emt 0:00:03]} cxd4 {[%emt 0:00:04]} 9. cxd4 {[%emt 0:00:03]} Nc6 {[%emt 0:00:25]} 10. Nc3 {[%emt 0:00:05]} Nf6 {[%emt 0:01:30]} 11. Bg5 {[%emt 0:00:41]} h6 {[%emt 0:00:11]} 12. Bh4 {[%emt 0:00:01]} Be7 {[%emt 0:00:20]} 13. a3 {[%emt 0:00:23]} a6 {[%emt 0:00:02]} 14. Qd3 {[%emt 0:00:33]} b5 {[%emt 0:02:53]} 15. Bb3 {[%emt 0:00:07]} Bb7 {[%emt 0:00:18]} 16. Rad1 {[%emt 0:01:31]} g6 {[%emt 0:01:37]} 17. Rfe1 {[%emt 0:01:43]} Kg7 {[%emt 0:00:29]} 18. Bc2 {[%emt 0:03:33]} Qd7 {[%emt 0:01:58]} 19. Ne5 {[%emt 0:00:28]} Qe8 {[%emt 0:00:02]} 20. Qg3 {[%emt 0:01:58]} Nh5 {[%emt 0:00:57]} 21. Qh3 {[%emt 0:00:10]} Bxh4 {[%emt 0:00:11]} 22. Qxh4 {[%emt 0:00:01]} Qe7 {[%emt 0:00:20]} 23. Qg4 {[%emt 0:00:05]} Nf6 {[%emt 0:00:22]} 24. Qg3 {[%emt 0:00:02]} Nh5 {[%emt 0:01:06]} 25. Nxg6 {[%emt 0:00:02]} Nxg3 {[%emt 0:00:10]} 26. Nxe7 {[%emt 0:00:02]} Nxe7 {[%emt 0:00:10]} 27. hxg3 {[%emt 0:00:01]} Rfd8 {[%emt 0:00:08]} 28. f3 {[%emt 0:01:32]} Rac8 {[%emt 0:00:04]} 29. Be4 {[%emt 0:00:42]} Bd5 {[%emt 0:00:59]} 30. Kf2 {[%emt 0:00:09]} Bb3 {[%emt 0:00:15]} 31. Rd2 {[%emt 0:00:32]} Rc4 {[%emt 0:00:14]} 32. Ke3 {[%emt 0:00:12]} Nd5+ {[%emt 0:00:13]} 33. Bxd5 {[%emt 0:00:09]} exd5 {[%emt 0:00:03]} 34. Kf4 {[%emt 0:00:06]} Rc6 {[%emt 0:00:07]} 35. Re7 {[%emt 0:00:06]} Rdd6 {[%emt 0:00:34]} 36. Rde2 {[%emt 0:00:18]} Rf6+ {[%emt 0:00:12]} 37. Ke3 {[%emt 0:00:01]} Bc4 {[%emt 0:00:02]} 38. Re1 {[%emt 0:00:12]} Rfe6+ {[%emt 0:00:05]} 39. Rxe6 {[%emt 0:00:01]} fxe6 {[%emt 0:00:03]} 40. Kf4 {[%emt 0:00:03]} Kf6 {[%emt 0:00:01]} 41. Rh1 {[%emt 0:00:02]} Kg6 {[%emt 0:00:06]} 42. Ke5 {[%emt 0:00:02]} Rb6 {[%emt 0:00:05]} 43. f4 {[%emt 0:00:10]} b4 {[%emt 0:00:02]} 44. axb4 {[%emt 0:00:11]} Rxb4 {[%emt 0:00:01]} 45. Kxe6 {[%emt 0:00:01]} Rxb2 {[%emt 0:00:06]} 46. f5+ {[%emt 0:01:14]} Kg7 {[%emt 0:00:12]} 47. f6+ {[%emt 0:00:33]} Kg6 {[%emt 0:00:01]} 48. Rh4 {[%emt 0:00:00]} Rb6+ {[%emt 0:00:51]} 49. Ke5 {[%emt 0:00:03]} Rxf6 {[%emt 0:00:05]} 50. Rxh6+ {[%emt 0:00:03]} Kxh6 {[%emt 0:00:02]} 51. Kxf6 {[%emt 0:00:01]} Kh5 {[%emt 0:01:16]} 52. Kf5 {[%emt 0:00:02]} Bd3+ {[%emt 0:00:00]} 53. Kf4 {[%emt 0:00:03]} Bc4 {[%emt 0:00:00]} 54. g4+ {[%emt 0:00:02]} Kg6 {[%emt 0:00:15]} 55. Ke5 {[%emt 0:00:15]} a5 {[%emt 0:00:00]} 56. Nxd5 {[%emt 0:00:05]} a4 {[%emt 0:00:00]} 57. Ne3 {[%emt 0:00:19]} a3 {[%emt 0:00:00]} 58. Nc2 {[%emt 0:00:00]} a2 {[%emt 0:00:00]} 59. d5 {[%emt 0:00:03]} Bd3 {[%emt 0:00:00]} 60. Na1 {[%emt 0:00:01]} Kg5 {[%emt 0:00:00]} 61. Kd4 {[%emt 0:00:13]} Bb5 {[%emt 0:00:00]} 62. Kc3 {[%emt 0:00:12]} Kxg4 {[%emt 0:00:00]} 63. Kb2 {[%emt 0:00:08]} Kf5 {[%emt 0:00:00]} 64. Nc2 {[%emt 0:00:08]} Ke5 {[%emt 0:00:00]} 65. Nb4 {[%emt 0:00:03]} Bc4 {[%emt 0:00:00]} 66. Nxa2 {[%emt 0:00:07]} Kxd5 {[%emt 0:00:00]} 67. Nc3+ {[%emt 0:00:08]} Ke5 {[%emt 0:00:00]} 68. g3 {[%emt 0:00:07]} Kf5 {[%emt 0:00:00]} 69. Kc2 {[%emt 0:00:01]} Kg4 {[%emt 0:00:01]} 70. Ne4 {[%emt 0:00:01]} Bd5 {[%emt 0:00:05]} 71. Nf6+ {[%emt 0:00:01]} Kxg3 {[%emt 0:00:01]} 1/2-1/2